Cogmind - Beta 15 @@@ ROGUE MODE // 2025.05.13 @ 16:07:32 Player: TheTravelingGuy Result: Smashed by cave-in Performance ------------- Evolutions (7) 3500 Regions Visited (15) 3000 Robots Destroyed (68) 340 Value Destroyed (1693) 1693 Prototype IDs (1) 20 Alien Tech Used (0) 0 Bonus (1619) 1619 TOTAL SCORE: 10172 Bonus ------- High Alert Combat Kills 40 Follower Combat Kills 79 Entered DSFs 500 Met Warlord at Base 500 MAIN.C Attacked Warlord 500 Cogmind --------- Core Integrity 0/1300 Matter 287/300 Energy 100/100 System Corruption 33% Temperature Cool (0) Movement Core (50) Location -3/Research Parts ------- > --- POWER (2) -------- (None) > --- PROPULSION (6) --- (None) > --- UTILITY (10) ----- (None) > --- WEAPON (3) ------- (None) > --- INVENTORY (5) ---- Actuator Array ECM Suite Advanced Shield Generator Makeshift Hacking Suite Makeshift Hacking Suite Peak State ------------ > --- POWER ------------ Micro Nuclear Core Micro Nuclear Core > --- PROPULSION ------- Antigrav System Antigrav System Linear Gravjet Linear Gravjet Linear Gravjet Linear Gravjet > --- UTILITY ---------- Advanced Heat Sink Visual Processing Unit IFF Parser Melee Analysis Suite Advanced Melee Analysis Suite Advanced Melee Analysis Suite Advanced Melee Analysis Suite Hacking Suite > --- WEAPON ----------- Katana Scythe Axe > --- INVENTORY -------- Advanced Heat Sink Advanced Weight Redist. System Actuator Array ECM Suite [Rating: 87] Favorites ----------- Power Micro Nuclear Core Engine Ion Engine Power Core Micro Nuclear Core Reactor Antimatter Reactor Propulsion Linear Gravjet Leg Aluminum Leg Hover Unit Linear Gravjet Flight Unit VTOL Module Utility Advanced Melee Analysis Suite Device IFF Parser Storage Large Storage Unit Processor Advanced Melee Analysis Suite Hackware Makeshift Hacking Suite Protection Hardened Medium Armor Plating Weapon Scythe Energy Gun Small Laser Energy Cannon Vortex Cannon Ballistic Gun Assault Rifle Launcher Grenade Launcher Special Weapon Mining Laser Slashing Weapon Scythe Piercing Weapon Makeshift Spear Build | -11 -10 -10 -9 -9 -8 -7 -6 -5 -5 -4 -4 -4 -4 -3 -3 ------- Run | Yrd Mat Min Mat Min Mat Fac Fac Fac DSF Fac Upp Upp War Pro Res Slots Evolved 14 | . . . 2 . 2 2 2 2 . 2 . . . . 2 Power 1 | . . . . . . . . 1 . . . . . . . Propulsion 4 | . . . 1 . 1 . . . . 2 . . . . . Utility 8 | . . . 1 . 1 1 2 1 . . . . . . 2 Weapon 1 | . . . . . . 1 . . . . . . . . . Parts Attached 76 | 7 3 2 6 7 11 1 5 2 . 16 1 5 3 2 5 Power 9 | 1 . . 1 1 . . . . . 3 1 1 . 1 . Engine 3 | 1 . . 1 . . . . . . . 1 . . . . Core 4 | . . . . 1 . . . . . 3 . . . . . Reactor 2 | . . . . . . . . . . . . 1 . 1 . Propulsion 25 | 2 . . 2 2 6 . . . . 11 . . . . 2 Treads . | . . . . . . . . . . . . . . . . Leg 8 | 2 . . 2 2 2 . . . . . . . . . . Wheel . | . . . . . . . . . . . . . . . . Hover 10 | . . . . . . . . . . 10 . . . . . Flight 7 | . . . . . 4 . . . . 1 . . . . 2 Utility 27 | 2 1 1 1 2 4 . 5 2 . 2 . 2 1 1 3 Device 11 | 1 . . . 1 . . 2 1 . 2 . 2 . 1 1 Storage 2 | 1 1 . . . . . . . . . . . . . . Processor 9 | . . 1 1 . 2 . 3 1 . . . . . . 1 Hackware 3 | . . . . . 1 . . . . . . . 1 . 1 Protection 2 | . . . . 1 1 . . . . . . . . . . Artifact . | . . . . . . . . . . . . . . . . Weapon 15 | 2 2 1 2 2 1 1 . . . . . 2 2 . . Energy Gun 1 | 1 . . . . . . . . . . . . . . . Energy Cannon 1 | . . . . . . . . . . . . . 1 . . Ballistic Gun 3 | 1 1 . . 1 . . . . . . . . . . . Ballistic Cannon . | . . . . . . . . . . . . . . . . Launcher 3 | . 1 1 1 . . . . . . . . . . . . Special Weapon 1 | . . . 1 . . . . . . . . . . . . Impact Weapon . | . . . . . . . . . . . . . . . . Slashing Weapon 5 | . . . . 1 1 1 . . . . . 1 1 . . Piercing Weapon 1 | . . . . . . . . . . . . 1 . . . Special Melee Weapon . | . . . . . . . . . . . . . . . . Unidentified Prototypes 1 | . . . . . . . . . . . . . 1 . . Parts Lost 31 | . . 1 1 3 2 . . . . 5 . . 2 1 16 Power 3 | . . . . . . . . . . 1 . . 1 . 1 Propulsion 11 | . . . 1 1 1 . . . . 3 . . 1 . 4 Utility 10 | . . . . . . . . . . 1 . . . 1 8 Weapon 7 | . . 1 . 2 1 . . . . . . . . . 3 Highest Loss Streak 14 | . . 1 1 2 2 . . . . 2 . . 2 1 14 To Critical Strikes . | . . . . . . . . . . . . . . . . Average Backups 6 | 1 6 7 10 12 9 4 3 3 4 3 5 5 4 4 4 Power . | . 1 1 1 1 1 1 1 1 1 . . . . . . Propulsion . | . . 1 1 2 . . . . . . 1 . . . . Utility 3 | . . 1 1 4 5 3 2 2 3 3 4 4 4 4 4 Weapon 1 | . 4 4 5 3 2 . . . . . . . . . . Tool/Special . | . . . . . . . . . . . . . . . . Unused Backups 15 | . . . . 3 7 . . . . 1 1 . 1 . 2 Power 1 | . . . . 1 . . . . . . . . . . . Propulsion 3 | . . . . 1 2 . . . . . . . . . . Utility 6 | . . . . . 2 . . . . . 1 . 1 . 2 Weapon 4 | . . . . 1 3 . . . . . . . . . . Tool/Special 1 | . . . . . . . . . . 1 . . . . . Average Slot Usage (%) 86 | . 100 100 93 98 94 98 97 94 94 90 86 87 88 73 29 Engine 4 | . 14 14 11 8 . . . . . . 2 3 4 . . Core 2 | . . . . 2 9 7 6 5 5 8 5 3 . . . Reactor 1 | . . . . . . . . . . . . 1 5 5 1 Leg 10 | . 28 28 27 31 28 . . . . . . . . . . Hover 10 | . . . . . . . . . . 21 21 21 20 10 2 Flight 1 | . . . . . 3 30 26 23 23 2 . . . . . Device 12 | . 14 14 11 9 7 5 7 5 5 12 15 15 15 15 3 Storage 4 | . 14 14 11 11 8 . . . . . . . . . . Processor 16 | . . . 11 11 9 23 29 35 35 26 26 26 22 21 10 Hackware 2 | . . . . . 8 7 6 5 5 1 . . 3 5 3 Ballistic Gun 5 | . 25 27 21 7 . . . . . . . . . . . Slashing Weapon 8 | . . . . 2 13 23 20 17 17 15 15 13 10 10 2 Piercing Weapon 1 | . . . . . . . . . . . . 1 5 5 1 Peak Build Rating 87 | 9 10 10 15 20 31 35 45 54 54 87 81 86 87 77 81 Average Rating 50 | 5 9 9 13 15 25 34 43 52 54 76 77 80 82 70 29 On Entrance 40 | . 9 10 10 14 18 31 35 45 54 54 76 79 78 70 71 Naked Turns 179 | . . . . . . . . . . . . . . . 179 Heaviest Build 41 | 14 31 31 34 33 38 15 15 15 14 23 29 28 31 41 28 Greatest Support 58 | 20 20 20 30 30 47 16 16 16 16 58 38 38 29 29 29 Greatest Overweight (x) 12 | 1 1 1 1 1 12 . . . . 1 . . 1 1 1 Average Overweight (x) . | . . 1 . . . . . . . . . . . . . Largest Inventory Capacity 15 | 8 15 15 15 15 15 5 5 5 5 5 5 5 5 5 5 Average Capacity 8 | 7 14 15 15 15 14 5 5 5 5 5 5 5 5 5 5 Most Carried 15 | 3 9 9 13 15 15 4 4 4 4 5 5 5 5 5 5 Average Carried 6 | 1 6 7 10 13 13 3 3 3 4 3 4 5 4 4 4 Final Capacity 15 | 8 15 15 15 15 5 5 5 5 5 5 5 5 5 5 5 Final Carried 14 | 3 9 8 13 14 5 4 4 4 4 5 5 5 5 5 5 Class Distribution -------------------- 24% | Mutant 15% | Scavenger-Gladiator 15% | Gladiator 15% | Scavenger-Mutant 13% | Scavenger-Sprinter 5% | Derelict-Gladiator 4% | Sprinter Dominant Class ---------------- Mutant | -10/Materials Mutant | -10/Mines Mutant | -9/Materials Scavenger-Mutant | -9/Mines Scavenger-Mutant | -8/Materials Scavenger-Sprinter | -7/Factory Scavenger-Sprinter | -6/Factory Scavenger-Sprinter | -5/Factory Scavenger-Sprinter | -5/DSF Scavenger-Sprinter | -4/Factory Scavenger-Gladiator | -4/Upper Caves Scavenger-Gladiator | -4/Upper Caves Gladiator | -4/Warlord Derelict-Gladiator | -3/Proximity Caves Mutant | -3/Research Resources | -11 -10 -10 -9 -9 -8 -7 -6 -5 -5 -4 -4 -4 -4 -3 -3 ----------- Run | Yrd Mat Min Mat Min Mat Fac Fac Fac DSF Fac Upp Upp War Pro Res Matter Collected 1811 | 241 160 54 372 199 244 20 . . . 323 33 95 50 20 . Remotely . | . . . . . . . . . . . . . . . . Salvage Created 2085 | 42 85 34 398 164 382 26 . . . 467 . 83 . 251 153 Parts 130 | 4 11 3 28 9 26 6 . . . 26 . 6 . 4 7 Haulers Intercepted . | . . . . . . . . . . . . . . . . Recyclers Shooed 1 | . . . . 1 . . . . . . . . . . . Parts Field Recycled . | . . . . . . . . . . . . . . . . Retrieved Matter . | . . . . . . . . . . . . . . . . Parts Self-Destructed 3 | . . . . . . . . . . . . . . 3 . Prevented . | . . . . . . . . . . . . . . . . Kills | -11 -10 -10 -9 -9 -8 -7 -6 -5 -5 -4 -4 -4 -4 -3 -3 ------- Run | Yrd Mat Min Mat Min Mat Fac Fac Fac DSF Fac Upp Upp War Pro Res Combat Hostiles Destroyed 50 | . 6 5 14 7 6 . . . . 6 . 1 . 1 4 Melee 18 | . . . . . 6 . . . . 6 . 1 . 1 4 Guns 9 | . . 2 5 2 . . . . . . . . . . . AOE 23 | . 6 3 9 5 . . . . . . . . . . . Classes Destroyed 14 | 1 3 . 4 1 1 1 . . . 1 . 1 . 1 . Worker 3 | . 1 . . . . . . . . 2 . . . . . Builder 1 | . . . . . . 1 . . . . . . . . . Tunneler 3 | 2 . . . . . 1 . . . . . . . . . Recycler 3 | . . . 1 1 . . . . . 1 . . . . . Operator 1 | . . . 1 . . . . . . . . . . . . Drone 1 | . . . . . . . . . . . . . . 1 . Watcher 7 | . 2 . 1 . 2 . . . . 2 . . . . . Swarmer 30 | . 6 5 8 5 . . . . . 2 . . . . 4 Grunt 7 | . . . 5 1 1 . . . . . . . . . . Duelist 1 | . . . . 1 . . . . . . . . . . . Sentry 5 | . . . 1 . 4 . . . . . . . . . . Hunter 1 | . . . . . 1 . . . . . . . . . . Programmer 4 | . . . . . . . . . . 4 . . . . . Mutant 1 | . . . . . . . . . . . . 1 . . . Best Kill Streak 8 | 2 8 3 4 3 2 1 . . . 3 . 1 . 1 4 Combat Bots Only 4 | . 3 3 4 3 2 . . . . 2 . 1 . 1 4 Max Kills in Single Turn 3 | 1 2 2 3 2 1 1 . . . 1 . 1 . 1 1 Gunslinging . | . . . . . . . . . . . . . . . . Exploded 3 | . 2 2 3 2 . . . . . . . . . . . Melee 1 | . . . . . 1 . . . . 1 . 1 . 1 1 Uniques/NPCs Destroyed . | . . . . . . . . . . . . . . . . Combat | -11 -10 -10 -9 -9 -8 -7 -6 -5 -5 -4 -4 -4 -4 -3 -3 -------- Run | Yrd Mat Min Mat Min Mat Fac Fac Fac DSF Fac Upp Upp War Pro Res Hostile Shots Fired 279 | . 21 24 23 30 26 18 . . 1 34 2 2 23 22 53 Missed 105 | . 7 7 9 5 8 12 . . 1 10 1 1 12 10 22 Hits 174 | . 14 17 14 25 18 6 . . . 24 1 1 11 12 31 Melee 6 | . . . . 5 . . . . . . . . 1 . . Projectile 168 | . 14 17 14 20 18 6 . . . 24 1 1 10 12 31 Critical Strikes 7 | . 2 . 1 1 . . . . . 1 1 . . 1 . Part Disruptions 1 | . . . . . . . . . . . . 1 . . . Damage Taken 4122 | . 174 139 165 401 390 43 . . . 440 16 14 256 144 1940 Core 1788 | . 21 36 41 106 98 11 . . . 89 . . 56 18 1312 Absorbed by Shields 33 | . . . . . . . . . . . . . . 33 . Regen/Repaired (Parts) 23 | . . . . . . . . . . . . . 23 . . Core Remaining (%) 88 | 100 . 77 . 63 82 98 100 . 100 . . . . 85 . Volleys Fired 81 | 3 8 13 33 16 8 . . . . . . . . . . Largest 2 | 2 2 2 2 2 1 . . . . . . . . . . Hottest 100 | 60 40 40 100 60 33 . . . . . . . . . . Shots Fired 132 | 6 10 22 59 27 8 . . . . . . . . . . Gun 103 | 6 4 18 52 23 . . . . . . . . . . . Cannon . | . . . . . . . . . . . . . . . . Launcher 27 | . 6 4 5 4 8 . . . . . . . . . . Special 2 | . . . 2 . . . . . . . . . . . . Kinetic 96 | 3 4 18 52 19 . . . . . . . . . . . Thermal 9 | 3 . . 2 4 . . . . . . . . . . . Explosive 27 | . 6 4 5 4 8 . . . . . . . . . . Electromagnetic . | . . . . . . . . . . . . . . . . Robot Hit Streak 8 | 2 2 4 3 8 2 . . . . . . . . . . Robot Miss Streak 6 | 1 2 4 6 2 . . . . . . . . . . . Penetration Max . | . . . . . . . . . . . . . . . . Secondary Targets 3 | . . 1 1 1 . . . . . . . . . . . Max Gunslinging Chain 1 | . . 1 1 1 . . . . . . . . . . . Shots Hit Robots 115 | 4 3 9 18 20 15 2 . . . 28 . 4 . 5 7 Core Hits 87 | 2 11 6 22 15 9 2 . . . 12 . 2 . 2 4 Critical Kills . | . . . . . . . . . . . . . . . . Critical Parts Destroyed . | . . . . . . . . . . . . . . . . Critical Strikes 6 | . . . . . 1 . . . . 3 . 1 . . 1 Sever 5 | . . . . . 1 . . . . 3 . 1 . . . Impale 1 | . . . . . . . . . . . . . . . 1 Melee Attacks 157 | . . . . . 16 4 . . 16 67 . 14 1 15 24 Impact . | . . . . . . . . . . . . . . . . Slashing 131 | . . . . . 16 4 . . 16 67 . 13 . 12 3 Piercing 26 | . . . . . . . . . . . . 1 1 3 21 Sneak Attacks 8 | . . . . . 1 2 . . . 4 . . . 1 . Combat Hostiles 2 | . . . . . 1 . . . . . . . . 1 . Follow-up Attacks 7 | . . . . . 1 . . . . 5 . . . 1 . Damage Inflicted 4862 | 45 388 236 699 554 594 172 . . . 1379 . 175 . 385 235 Guns 590 | 45 30 96 234 185 . . . . . . . . . . . Cannons . | . . . . . . . . . . . . . . . . Explosions 1452 | . 358 140 465 369 120 . . . . . . . . . . Melee 2820 | . . . . . 474 172 . . . 1379 . 175 . 385 235 Ramming . | . . . . . . . . . . . . . . . . Kinetic 513 | 10 30 96 234 143 . . . . . . . . . . . Thermal 173 | 35 . . . 104 34 . . . . . . . . . . Explosive 1356 | . 358 140 465 307 86 . . . . . . . . . . Electromagnetic . | . . . . . . . . . . . . . . . . Impact . | . . . . . . . . . . . . . . . . Slashing 2585 | . . . . . 474 172 . . . 1379 . 175 . 385 . Piercing 235 | . . . . . . . . . . . . . . . 235 Highest Corruption 33 | . . . . . . . . . . 2 2 2 2 1 33 Average Corruption 4 | . . . . . . . . . . 1 2 2 1 1 29 Corruption Purged . | . . . . . . . . . . . . . . . . Corruption Blocked . | . . . . . . . . . . . . . . . . Effects 31 | . . . . . . . . . . 7 1 7 . 4 12 Message Errors 8 | . . . . . . . . . . 2 . 2 . . 4 Matter Fused 6 | . . . . . . . . . . 1 . 3 . . 2 Heat Flow Errors 2 | . . . . . . . . . . . . . . 1 1 Energy Discharges 7 | . . . . . . . . . . 2 1 1 . 2 1 Data Loss (minor) 4 | . . . . . . . . . . 1 . 1 . . 2 Data Loss (major) 2 | . . . . . . . . . . . . . . . 2 Alerts 2 | . . . . . . . . . . 1 . . . 1 . Overload Shots . | . . . . . . . . . . . . . . . . Overflow Damage 394 | . 40 . 8 19 70 . . . . 75 . . . 182 . Projectiles . | . . . . . . . . . . . . . . . . Explosions 125 | . 40 . 8 19 58 . . . . . . . . . . Melee 269 | . . . . . 12 . . . . 75 . . . 182 . Knockbacks . | . . . . . . . . . . . . . . . . Impact . | . . . . . . . . . . . . . . . . Kinetic . | . . . . . . . . . . . . . . . . Secondary . | . . . . . . . . . . . . . . . . Self-Inflicted Damage 274 | . 69 . 36 40 129 . . . . . . . . . . Shots 11 | . 3 . 2 2 4 . . . . . . . . . . Rammed . | . . . . . . . . . . . . . . . . Targets Rammed . | . . . . . . . . . . . . . . . . Kicked . | . . . . . . . . . . . . . . . . Crushed . | . . . . . . . . . . . . . . . . Highest Temperature 240 | . . . 24 74 3 . . . . 67 . . . 66 240 Average Temperature 38 | . . . 12 26 3 . . . . 37 . . . 40 135 Received Heat Transfer 260 | . . . 21 96 63 12 . . . . 27 20 12 9 . Siege Activations . | . . . . . . . . . . . . . . . . Martial Activations . | . . . . . . . . . . . . . . . . Shielding Activations . | . . . . . . . . . . . . . . . . Robots Disrupted . | . . . . . . . . . . . . . . . . Combat Hostiles . | . . . . . . . . . . . . . . . . Robots Corrupted . | . . . . . . . . . . . . . . . . Combat Hostiles . | . . . . . . . . . . . . . . . . Parts Fried . | . . . . . . . . . . . . . . . . Impact Corruptions . | . . . . . . . . . . . . . . . . Robots Melted . | . . . . . . . . . . . . . . . . Combat Hostiles . | . . . . . . . . . . . . . . . . Parts Melted 2 | . . . . 2 . . . . . . . . . . . Heat Transferred 325 | 75 . . . 200 50 . . . . . . . . . . Parts Sabotaged 1 | . . . . . . . . . . . . . 1 . . Parts Stolen . | . . . . . . . . . . . . . . . . Parts Stripped . | . . . . . . . . . . . . . . . . Power Chain Reactions . | . . . . . . . . . . . . . . . . Alert | -11 -10 -10 -9 -9 -8 -7 -6 -5 -5 -4 -4 -4 -4 -3 -3 ------- Run | Yrd Mat Min Mat Min Mat Fac Fac Fac DSF Fac Upp Upp War Pro Res Maximum Alert Level 3 | . . . 1 . . . . . . . . . . . 3 Low Security (%) 86 | 100 100 100 81 100 100 100 100 100 100 100 . . . . . Level 1 5 | . . . 18 . . . . . . . . . . . 23 Level 2 5 | . . . . . . . . . . . . . . . 49 Level 3 2 | . . . . . . . . . . . . . . . 26 Level 4 . | . . . . . . . . . . . . . . . . Level 5 . | . . . . . . . . . . . . . . . . High Security . | . . . . . . . . . . . . . . . . Max Security . | . . . . . . . . . . . . . . . . Peak Influence 750 | 10 173 115 291 123 55 30 11 . 19 100 . . . . 750 Initial 750 | . 6 . 22 103 39 21 11 . . 9 . . . . 750 Average 106 | 1 68 65 120 71 20 24 6 . 9 20 . . . . 555 Influence Increases 2653 | 10 215 199 529 218 241 24 . . 19 309 . . . 15 874 Destroy 0b10 Robot/C 1060 | . 120 120 360 140 120 . . . . 120 . . . . 80 Destroy 0b10 Robot/NC 110 | 10 15 . 20 5 10 10 . . . 25 . . . 15 . Destroy Leader 246 | . 24 20 74 30 54 . . . . 34 . . . . 10 Allied During Kill 44 | . . 22 22 . . . . . . . . . . . . Successful Hack 32 | . 8 . . . 5 14 . . . 5 . . . . . Disable Machine 60 | . 15 . 15 15 15 . . . . . . . . . . Destroy Structure 216 | . 33 22 38 28 37 . . . 4 50 . . . . 4 Advance Influence 750 | . . . . . . . . . . . . . . . 750 Partial Spotted 15 | . . . . . . . . . . 15 . . . . . Lose Combat Pursuer 120 | . . 15 . . . . . . 15 60 . . . . 30 Influence Decreases 2303 | . 225 140 323 382 295 46 24 1 . 324 4 . . 15 524 Entered New Map 319 | . 4 . 37 162 62 26 14 1 . 10 3 . . . . Time Decay 1504 | . 221 140 216 190 203 20 10 . . 274 1 . . 15 214 Search Patrol Dispatched 150 | . . . . . . . . . . . . . . . 150 Lost Part 260 | . . . 10 30 20 . . . . 40 . . . . 160 Lost Ally 70 | . . . 60 . 10 . . . . . . . . . . Squads Dispatched 10 | . 1 . 2 1 2 . . . . 3 . . . . 1 Investigation 4 | . 1 . 1 1 1 . . . . . . . . . . Extermination 4 | . . . . . . . . . . 3 . . . . 1 Reinforcement 2 | . . . 1 . 1 . . . . . . . . . . Assault . | . . . . . . . . . . . . . . . . Garrison . | . . . . . . . . . . . . . . . . Intercept . | . . . . . . . . . . . . . . . . Searches Triggered 1 | . . . . . . . . . . . . . . . 1 Construction Impeded 1 | . . . . . 1 . . . . . . . . . . Haulers Reinforced . | . . . . . . . . . . . . . . . . Active Scanning Responses . | . . . . . . . . . . . . . . . . Cargo Convoy Interrupts . | . . . . . . . . . . . . . . . . Stealth | -11 -10 -10 -9 -9 -8 -7 -6 -5 -5 -4 -4 -4 -4 -3 -3 --------- Run | Yrd Mat Min Mat Min Mat Fac Fac Fac DSF Fac Upp Upp War Pro Res Distress Signals 5 | . . . 3 . 1 . . . . 1 . . . . . Communications Jammed . | . . . . . . . . . . . . . . . . Distress Signals . | . . . . . . . . . . . . . . . . Times Spotted 135 | . 9 7 23 7 16 1 . . 2 22 3 1 31 7 6 Peak Tracking Total 30 | . 3 3 4 3 6 1 . . 1 6 3 1 30 5 6 Tactical Retreats 9 | . . 1 . . . . . . 1 4 . . . 2 1 Traps | -11 -10 -10 -9 -9 -8 -7 -6 -5 -5 -4 -4 -4 -4 -3 -3 ------- Run | Yrd Mat Min Mat Min Mat Fac Fac Fac DSF Fac Upp Upp War Pro Res Traps Triggered 2 | . 1 . . . . . . . . 1 . . . . . Indirectly . | . . . . . . . . . . . . . . . . Trap Hack Attempts . | . . . . . . . . . . . . . . . . Triggered . | . . . . . . . . . . . . . . . . Disarmed . | . . . . . . . . . . . . . . . . Reprogrammed . | . . . . . . . . . . . . . . . . Reused . | . . . . . . . . . . . . . . . . Traps Extracted . | . . . . . . . . . . . . . . . . Installed . | . . . . . . . . . . . . . . . . Triggered . | . . . . . . . . . . . . . . . . Most Traps Carried 5 | . . . . 5 5 . . . . . . . . . . Machines | -11 -10 -10 -9 -9 -8 -7 -6 -5 -5 -4 -4 -4 -4 -3 -3 ---------- Run | Yrd Mat Min Mat Min Mat Fac Fac Fac DSF Fac Upp Upp War Pro Res Machines Disabled 7 | . 1 . 3 1 1 . . . . . . 1 . . . Max in Single Turn 2 | . 1 . 2 1 1 . . . . . . 1 . . . Machines Repaired . | . . . . . . . . . . . . . . . . Machines Dismantled . | . . . . . . . . . . . . . . . . Machines Sabotaged . | . . . . . . . . . . . . . . . . Overloaded Fab Kills . | . . . . . . . . . . . . . . . . Hacking | -11 -10 -10 -9 -9 -8 -7 -6 -5 -5 -4 -4 -4 -4 -3 -3 --------- Run | Yrd Mat Min Mat Min Mat Fac Fac Fac DSF Fac Upp Upp War Pro Res Machines Accessed 23 | . 3 . 4 1 2 2 . 1 . 3 . . 7 . . Terminals 11 | . 2 . 3 . 1 2 . 1 . 2 . . . . . Fabricators . | . . . . . . . . . . . . . . . . Repair Stations . | . . . . . . . . . . . . . . . . Recycling Units 3 | . 1 . 1 . 1 . . . . . . . . . . Scanalyzers 1 | . . . . . . . . . . 1 . . . . . Garrison Access . | . . . . . . . . . . . . . . . . Total Hacks 44 | . 8 . 10 1 4 5 . 1 . 7 . . 8 . . Successful 23 | . 4 . 3 1 2 2 . 1 . 2 . . 8 . . Failed 21 | . 4 . 7 . 2 3 . . . 5 . . . . . Catastrophic 1 | . . . 1 . . . . . . . . . . . . Database Lockouts . | . . . . . . . . . . . . . . . . Manual 32 | . 6 . 9 . 3 5 . . . 6 . . 3 . . Terminals 30 | . 6 . 9 . 3 5 . 1 . 6 . . . . . Fabricators . | . . . . . . . . . . . . . . . . Repair Stations . | . . . . . . . . . . . . . . . . Recycling Units 4 | . 2 . 1 . 1 . . . . . . . . . . Scanalyzers 1 | . . . . . . . . . . 1 . . . . . Garrison Access . | . . . . . . . . . . . . . . . . Terminal Hacks 14 | . 2 . 1 1 . . . 1 . 1 . . 8 . . Record 6 | . . . . . . . . . . . . . 6 . . Open Door 3 | . . . . 1 . . . . . . . . 2 . . Open DSF 1 | . . . . . . . . 1 . . . . . . . Branch Access Points 1 | . 1 . . . . . . . . . . . . . . Recall Investigation 1 | . 1 . . . . . . . . . . . . . . Zone Layout 2 | . . . 1 . . . . . . 1 . . . . . Fabricator Hacks . | . . . . . . . . . . . . . . . . Repair Station Hacks . | . . . . . . . . . . . . . . . . Recycling Unit Hacks 3 | . 1 . 1 . 1 . . . . . . . . . . Retrieve Components 3 | . 1 . 1 . 1 . . . . . . . . . . Scanalyzer . | . . . . . . . . . . . . . . . . Garrison Access Hacks . | . . . . . . . . . . . . . . . . Unauthorized Hacks 6 | . 1 . 1 . 1 2 . . . 1 . . . . . Terminals 6 | . 1 . 1 . 1 2 . . . 1 . . . . . Assimilate 1 | . . . . . 1 . . . . . . . . . . Botnet 5 | . 1 . 1 . . 2 . . . 1 . . . . . Fabricators . | . . . . . . . . . . . . . . . . Repair Stations . | . . . . . . . . . . . . . . . . Recycling Units . | . . . . . . . . . . . . . . . . Scanalyzers . | . . . . . . . . . . . . . . . . Garrison Access . | . . . . . . . . . . . . . . . . Data Cores Recovered . | . . . . . . . . . . . . . . . . Used . | . . . . . . . . . . . . . . . . Hacking Detections 9 | . 1 . 3 . 1 2 . . . 2 . . . . . Full Trace Events 2 | . . . 1 . 1 . . . . . . . . . . Feedback Events . | . . . . . . . . . . . . . . . . Feedback Blocked . | . . . . . . . . . . . . . . . . Robot Schematics Acquired . | . . . . . . . . . . . . . . . . Robots Built . | . . . . . . . . . . . . . . . . Authchips . | . . . . . . . . . . . . . . . . Time . | . . . . . . . . . . . . . . . . Total Robot Build Rating . | . . . . . . . . . . . . . . . . Part Schematics Acquired . | . . . . . . . . . . . . . . . . Parts Built . | . . . . . . . . . . . . . . . . Authchips . | . . . . . . . . . . . . . . . . Time . | . . . . . . . . . . . . . . . . Total Part Build Rating . | . . . . . . . . . . . . . . . . Parts Repaired . | . . . . . . . . . . . . . . . . Time . | . . . . . . . . . . . . . . . . Parts Recycled . | . . . . . . . . . . . . . . . . Recycled Matter . | . . . . . . . . . . . . . . . . Retrieved Matter . | . . . . . . . . . . . . . . . . Retrieved Components 9 | . 5 . 1 . 3 . . . . . . . . . . Parts Scanalyzed . | . . . . . . . . . . . . . . . . Part Schematics Acquired . | . . . . . . . . . . . . . . . . Parts Damaged . | . . . . . . . . . . . . . . . . Bothacking | -11 -10 -10 -9 -9 -8 -7 -6 -5 -5 -4 -4 -4 -4 -3 -3 ------------ Run | Yrd Mat Min Mat Min Mat Fac Fac Fac DSF Fac Upp Upp War Pro Res Used RIF Installer . | . . . . . . . . . . . . . . . . Robots Hacked . | . . . . . . . . . . . . . . . . Non-combat . | . . . . . . . . . . . . . . . . Combat . | . . . . . . . . . . . . . . . . Robot Hacks Applied . | . . . . . . . . . . . . . . . . Relay Couplers Released . | . . . . . . . . . . . . . . . . Fabnet Peak Effective % . | . . . . . . . . . . . . . . . . Robots Rewired . | . . . . . . . . . . . . . . . . Allies Hacked . | . . . . . . . . . . . . . . . . Hacks Repelled . | . . . . . . . . . . . . . . . . Allies | -11 -10 -10 -9 -9 -8 -7 -6 -5 -5 -4 -4 -4 -4 -3 -3 -------- Run | Yrd Mat Min Mat Min Mat Fac Fac Fac DSF Fac Upp Upp War Pro Res Total Allies 4 | . . 3 . . 1 . . . . . . . . . . Largest Group 3 | . . 3 3 . 1 . . . . . . . . . . Highest-Rated Group 40 | . . 40 40 . 10 . . . . . . . . . . Highest-Rated Ally 16 | . . 16 16 . 10 . . . . . . . . . . Total Orders . | . . . . . . . . . . . . . . . . Ally Attacks 50 | . . 2 48 . . . . . . . . . . . . Total Damage 519 | . . 24 495 . . . . . . . . . . . . Kills 6 | . . 1 5 . . . . . . . . . . . . Allies Corrupted . | . . . . . . . . . . . . . . . . Allies Melted 1 | . . . . . . . . . . . . . 1 . . Intel | -11 -10 -10 -9 -9 -8 -7 -6 -5 -5 -4 -4 -4 -4 -3 -3 ------- Run | Yrd Mat Min Mat Min Mat Fac Fac Fac DSF Fac Upp Upp War Pro Res Active Infowar (turns) 6093 | 6 542 321 541 386 532 52 38 15 59 1057 190 439 1072 635 208 Optics 3903 | . . . 541 386 532 52 38 15 59 1057 190 439 386 . 208 IFF 3599 | . . . . . . . . 10 59 1057 190 439 1072 635 137 Terrain 1821 | 6 542 321 541 250 . . . . . . . 161 . . . ECM 3001 | . . . . 74 433 51 38 5 . 201 77 278 1072 635 137 Robot Analysis Total . | . . . . . . . . . . . . . . . . Derelict Logs Recovered 4 | . . 1 . 1 . . . . . . 1 1 . . . Drone Launches . | . . . . . . . . . . . . . . . . Drone Recoveries . | . . . . . . . . . . . . . . . . Exploration | -11 -10 -10 -9 -9 -8 -7 -6 -5 -5 -4 -4 -4 -4 -3 -3 ------------- Run | Yrd Mat Min Mat Min Mat Fac Fac Fac DSF Fac Upp Upp War Pro Res Turns Passed 6402 | 78 542 322 541 386 532 52 38 15 59 1057 190 439 1072 635 444 Spaces Moved 5123 | 48 248 142 228 209 343 115 67 43 94 874 393 441 875 894 109 Core 17 | 3 . . . . 3 . . . . . . . . . 11 Treads . | . . . . . . . . . . . . . . . . Legs 1154 | 45 248 142 228 209 282 . . . . . . . . . . Wheels . | . . . . . . . . . . . . . . . . Hover 3501 | . . . . . . . . . . 803 393 441 875 894 95 Flight 451 | . . . . . 58 115 67 43 94 71 . . . . 3 Fastest Speed 26 | 50 120 190 120 120 26 26 26 26 26 26 38 38 46 46 37 Average Speed 75 | 117 188 190 184 149 110 26 26 26 26 30 38 39 96 46 45 Slowest Speed 755 | 120 190 190 190 190 755 26 26 26 26 120 38 46 111 111 100 Overloaded Moves . | . . . . . . . . . . . . . . . . Propulsion Burnouts . | . . . . . . . . . . . . . . . . Robots Hopped . | . . . . . . . . . . . . . . . . Potential Cave-ins 32 | . . . . . 5 . . . 10 . . 2 . 2 13 Cave-ins Triggered 17 | . . . . . . . . . . . . . . . 17 Exploration Rate (%) 36 | 3 41 31 29 33 28 3 3 1 76 30 62 57 93 95 4 Regions Visited 15 Branch Regions 6 Pre-discovered Areas 2 | . . . . 1 . . . . . . 1 . . . . Known Exits Taken 3 | . 1 1 . . . . . 1 . . . . . . . Unknown Exits Taken 11 | 1 . . 1 1 1 1 1 . . 1 1 1 1 1 . Scrap Searched 4 | . . . . . . . . . . . 2 1 . 1 . Spaces Dug 172 | . . . 2 . 108 . . . 12 26 . 5 1 6 12 Terrain Destroyed 300 | . 34 22 35 31 116 . . . 12 26 . 5 1 6 12 Melee 62 | . . . . . . . . . 12 26 . 5 1 6 12 Projectile 2 | . . . 2 . . . . . . . . . . . . AOE 236 | . 34 22 33 31 116 . . . . . . . . . . Terrain Rammed . | . . . . . . . . . . . . . . . . Walls Destroyed . | . . . . . . . . . . . . . . . . Machines Disabled . | . . . . . . . . . . . . . . . . Actions | -11 -10 -10 -9 -9 -8 -7 -6 -5 -5 -4 -4 -4 -4 -3 -3 --------- Run | Yrd Mat Min Mat Min Mat Fac Fac Fac DSF Fac Upp Upp War Pro Res Total 7299 | 60 311 169 281 261 469 132 87 45 105 1576 432 690 1104 1100 477 Wait 1743 | . 44 5 . . 64 13 12 . . 599 36 227 217 192 334 Move 5107 | 47 247 141 227 208 342 114 66 42 93 873 392 440 874 893 108 Hop . | . . . . . . . . . . . . . . . . Pick Up 65 | 3 6 1 8 16 10 1 1 1 . 11 1 1 2 1 2 Fast Attach 40 | 7 . . 1 . 8 . 2 . . 11 1 3 4 1 2 Attach 34 | . . 1 2 7 3 2 3 1 . 11 . . . 1 3 Detach 5 | . . . . . . . 2 . . 2 . . . . 1 Swap 36 | . 5 8 9 3 2 . . 1 . 4 1 3 . . . Drop 64 | . 1 . 1 11 18 . 1 . . 16 1 6 6 1 2 Fire 81 | 3 8 13 33 16 8 . . . . . . . . . . Melee 123 | . . . . . 14 2 . . 12 49 . 10 1 11 24 Ram . | . . . . . . . . . . . . . . . . Kick . | . . . . . . . . . . . . . . . . Crush . | . . . . . . . . . . . . . . . . Escape Stasis 1 | . . . . . . . . . . . . . . . 1 Rewire . | . . . . . . . . . . . . . . . . Trap . | . . . . . . . . . . . . . . . . Miscellaneous . | . . . . . . . . . . . . . . . . Route ------- -11/Scrapyard -10/Materials (discovered 2 exits: *Mat / *Min) -10/Mines (discovered 3 exits: *Mat x2 / [*Sub]) -9/Materials -9/Mines -8/Materials -7/Factory -6/Factory -5/Factory -5/DSF -4/Factory -4/Upper Caves -4/Upper Caves -4/Warlord -3/Proximity Caves -3/Research History --------- Turn | Location | Event 7 | -11/Scrapyard | Discovered new exit (range 16) 79 | -11/Scrapyard | Entered Materials 303 | -10/Materials | Build established: Mutant 409 | -10/Materials | Discovered new exit (range 16) 463 | -10/Materials | Identified exit to Mines 621 | -10/Materials | Entered Mines 625 | -10/Mines | Assisted by bots powering up and referring to "LRC-V3" 663 | -10/Mines | Discovered new exit (range 11) 701 | -10/Mines | Identified exit to Materials 730 | -10/Mines | Discovered new exit (range 10) 784 | -10/Mines | Learned Materials machine intel 824 | -10/Mines | Received a Rocket Launcher from a helpful Derelict 912 | -10/Mines | Discovered exit to Materials (range 7) 943 | -10/Mines | Entered Materials 943 | -9/Materials | Accompanied by 3 allies 943 | -9/Materials | Evolved 2 slots: Propulsion x1, Utility x1 944 | -9/Materials | Loaded intel: 58 machine locations 1399 | -9/Materials | Discovered new exit (range 14) 1484 | -9/Materials | Entered Mines 1487 | -9/Mines | Met a Derelict bent on vengeance 1596 | -9/Mines | Learned location of Storage (-7) 1598 | -9/Mines | Met a Derelict shopkeep closing up shop 1635 | -9/Mines | Build established: Scavenger-Mutant 1778 | -9/Mines | Found a hidden stash of uninstalled traps 1846 | -9/Mines | Discovered new exit (range 10) 1870 | -9/Mines | Entered Materials 1870 | -8/Materials | Evolved 2 slots: Propulsion x1, Utility x1 2398 | -8/Materials | Discovered new exit (range 16) 2402 | -8/Materials | Entered Factory 2402 | -7/Factory | Evolved 2 slots: Utility x1, Weapon x1 2447 | -7/Factory | Discovered new exit (range 16) 2454 | -7/Factory | Entered another Factory area 2454 | -6/Factory | Evolved 2 slots: Utility x2 2491 | -6/Factory | Discovered new exit (range 6) 2492 | -6/Factory | Entered another Factory area 2492 | -5/Factory | Evolved 2 slots: Power x1, Utility x1 2507 | -5/Factory | Identified exit to DSF 2507 | -5/Factory | Entered DSF 2534 | -5/DSF | Additional patrols routed to DSF 2558 | -5/DSF | Discovered new exit (range 17) 2566 | -5/DSF | Entered Factory 2566 | -4/Factory | Evolved 2 slots: Propulsion x2 2631 | -4/Factory | Build established: Scavenger-Sprinter 3449 | -4/Factory | Build established: Sprinter 3620 | -4/Factory | Discovered new exit (range 6) 3623 | -4/Factory | Entered Upper Caves 3768 | -4/Upper Caves | Build established: Scavenger-Gladiator 3784 | -4/Upper Caves | Learned location of Testing (-3) 3811 | -4/Upper Caves | Discovered new exit (range 5) 3813 | -4/Upper Caves | Attracted the attention of an 0b10 checkpoint 3813 | -4/Upper Caves | Entered another Upper Caves area 4031 | -4/Upper Caves | Learned Research terminal intel 4083 | -4/Upper Caves | Attacked by a delusional Derelict stockpiling parts 4248 | -4/Upper Caves | Discovered new exit (range 5) 4252 | -4/Upper Caves | Entered Warlord 4268 | -4/Warlord | Opened side exit 4384 | -4/Warlord | System corruption cleaned by Quarantine Array 4717 | -4/Warlord | Warlord's base attacked by MAIN.C 4730 | -4/Warlord | Found Prototype Energy Cannon 4730 | -4/Warlord | Identified Vortex Cannon 4947 | -4/Warlord | Build established: Gladiator 5067 | -4/Warlord | Warlord forces counterattacked 5106 | -4/Warlord | Met Warlord 5113 | -4/Warlord | Lost 4 allies 5313 | -4/Warlord | Spotted Striker 5314 | -4/Warlord | Spotted Executioner 5317 | -4/Warlord | Spotted Striker 5317 | -4/Warlord | Spotted Executioner 5321 | -4/Warlord | Discovered new exit (range 8) 5324 | -4/Warlord | Entered Proximity Caves 5410 | -3/Proximity Caves | Spotter reported a threat 5584 | -3/Proximity Caves | Spotter reported a threat 5648 | -3/Proximity Caves | Spotter reported a threat 5652 | -3/Proximity Caves | Spotter reported a threat 5666 | -3/Proximity Caves | Spotted B-86 Titan 5709 | -3/Proximity Caves | Spotter reported a threat 5928 | -3/Proximity Caves | Build established: Derelict-Gladiator 5956 | -3/Proximity Caves | Discovered new exit (range 8) 5959 | -3/Proximity Caves | Entered Research 5959 | -3/Research | Evolved 2 slots: Utility x2 5960 | -3/Research | Loaded intel: 21 terminal locations 6144 | -3/Research | Crushed by falling debris 6144 | -3/Research | System corruption reached 10% 6163 | -3/Research | Crushed by falling debris 6167 | -3/Research | Crushed by falling debris 6183 | -3/Research | Crushed by falling debris 6209 | -3/Research | Search patrols dispatched 6214 | -3/Research | Lost 14 parts (1p3n7u3w) 6225 | -3/Research | Crushed by falling debris 6225 | -3/Research | System corruption reached 30% 6229 | -3/Research | Crushed by falling debris 6237 | -3/Research | Crushed by falling debris 6237 | -3/Research | Core integrity fell below 50% 6247 | -3/Research | Crushed by falling debris 6256 | -3/Research | Crushed by falling debris 6267 | -3/Research | Crushed by falling debris 6301 | -3/Research | Crushed by falling debris 6353 | -3/Research | Crushed by falling debris 6362 | -3/Research | Crushed by falling debris 6362 | -3/Research | Core integrity fell below 20% 6372 | -3/Research | Crushed by falling debris 6383 | -3/Research | Crushed by falling debris 6394 | -3/Research | Crushed by falling debris 6404 | -3/Research | Crushed by falling debris 6404 | -3/Research | Smashed by cave-in Last Messages --------------- 06301_ The unstable cave ceiling collapses. 06301_ Crushed by falling debris. 06313_ System corrupted: Matter fused (-5). 06347_ OI C&GYRR VXWD NZ7